{"text_format":"3","workbook":"xlsx","n_sheets":1,"sheets":[" 1. TRANSACTION FEES "],"not_rendered":{"images":1,"defined_names":17},"read":"whole","date_system":"1900"}

{"sheet":" 1. TRANSACTION FEES ","index":0,"n_rows":32,"n_cols":6,"rows_kept":32,"merged":[[0,2,2,5],[3,2,3,5],[6,2,6,5],[7,2,7,5],[8,2,8,5],[10,3,10,4],[11,0,11,2],[11,3,11,5],[30,0,30,1],[31,0,31,3],[31,4,31,5]]}
[null,null,"ANNEXURE A: TRANSACTION FEE MODEL"]
[]
[]
[null,null,"SERVICES"]
[]
[]
["RFP NO:",null,"SAHRA/PFU/TMS/05/2024"]
["RFP NAME:",null,"PROVISION OF TRAVEL MANAGEMENT SERVICES"]
["BIDDER NAME"]
[]
["1.1  TRANSACTION FEES"]
[{"$nulls":3},"TRADITIONAL BOOKINGS"]
["ITEM","Transaction Type","*Estimated Volume","Unit Price\n(excl VAT)","Unit Price\n(incl VAT)","TOTAL Price\n(incl VAT)"]
[1,"Air Travel – Domestic",214,null,{"$f":"D14*1.14","v":0},{"$f":"E14*C14","v":0}]
[2,"Air Travel – Regional & International",32,null,{"$f":"D15*1.14","v":0},{"$f":"E15*C15","v":0}]
[3,"Car Rental - Domestic",117,null,0,0]
[4,"Car Rental - Regional & International",10,null,0,0]
[5,"Shuttle Services - Domestic",169,null,0,0]
[6,"Accomodation - Domestic",221,null,0,0]
[7,"Accomodation - Regional & International",26,null,0,0]
[8,"Transfers - Domestic",169,null,0,0]
[9,"Transfers - Regional & International",10,null,0,0]
[10,"Bus/Coach Bookings",10,null,0,0]
[11,"Train bookings – Regions & International",0,null,0,0]
[12,"Conferences and Events",5,null,0,0]
[13,"After Hours Services",50,null,0,0]
[14,"Parking bookings",100,null,0,0]
[15,"Insurance",45,null,0,0]
[16,"Forex",0,null,0,0]
[null,"Total",{"$f":"SUM(C14:C29)","v":1178},null,null,{"$f":"SUM(F14:F29)","v":0}]
[{"$nulls":5},{"$f":"F30*E31","v":0}]
["PRICE THAT WILL BE USED FOR EVALUATION PURPOSES"]